bitfinex/quotes_BTCUSD_20230110
["timestamp","ask_amount","ask_price","bid_price","bid_amount"]
[1673337630624,0.00084204,17206.0,17204.0,0.09967598]
[1673337630893,0.20084204,17206.0,17204.0,0.09967598]
[1673337631405,0.4048442,17206.0,17204.0,0.09967598]
[1673337631678,0.00084204,17206.0,17204.0,0.27376148]
[1673337631937,0.74708165,17207.0,17204.0,0.53488973]
[1673337632195,0.74708165,17207.0,17204.0,0.77256762]
[1673337632447,0.74708165,17207.0,17204.0,0.53488973]
[1673337632952,0.00084204,17206.0,17204.0,0.53488973]
[1673337633211,0.74708165,17207.0,17204.0,0.43988973]
[1673337633475,0.74708165,17207.0,17204.0,0.53488973]
[1673337633476,0.2,17206.0,17204.0,0.53488973]
[1673337634499,0.2,17206.0,17204.0,0.43988973]
[1673337634759,0.74708165,17207.0,17204.0,0.53488973]
[1673337635266,0.00084204,17206.0,17204.0,0.53488973]
[1673337635522,0.74708165,17207.0,17204.0,0.53488973]
[1673337636022,1.00805088,17207.0,17204.0,0.43988973]
[1673337636272,0.00084204,17206.0,17204.0,0.53488973]
[1673337636538,1.00805088,17207.0,17204.0,0.27376148]
[1673337637311,0.00084204,17206.0,17204.0,0.27376148]
[1673337637593,0.2,17206.0,17204.0,0.27376148]
[1673337638861,0.2,17206.0,17204.0,0.17876148]
[1673337639124,0.2,17206.0,17204.0,0.27376148]
[1673337640494,1.00805088,17207.0,17204.0,0.27376148]
[1673337640648,1.00805088,17207.0,17204.0,0.51143937]
[1673337640946,1.00805088,17207.0,17204.0,0.27376148]
[1673337641733,0.2,17206.0,17204.0,0.27376148]
[1673337641994,0.2,17206.0,17204.0,0.17876148]
[1673337642221,0.2,17206.0,17204.0,0.27376148]
[1673337642467,0.20084204,17206.0,17204.0,0.27376148]
[1673337642717,0.20084204,17206.0,17204.0,0.17876148]
[1673337643220,0.37482153,17206.0,17204.0,0.27376148]
[1673337643459,0.77882369,17206.0,17204.0,0.09967598]
[1673337643704,0.77882369,17206.0,17204.0,0.27376148]
[1673337643957,0.77882369,17206.0,17204.0,0.17876148]
[1673337644491,0.37482153,17206.0,17204.0,0.17876148]
[1673337645140,0.37397949,17206.0,17204.0,0.17876148]
[1673337645367,0.37397949,17206.0,17204.0,0.20276148]
[1673337646013,0.63494872,17206.0,17204.0,0.20276148]
[1673337648236,0.63494872,17206.0,17204.0,0.46388973]
[1673337648488,0.02707468,17205.0,17204.0,0.46388973]
[1673337648742,0.02707468,17205.0,17204.0,0.20276148]
[1673337650857,0.02707468,17205.0,17204.0,0.46388973]
[1673337651590,0.02707468,17205.0,17204.0,0.82572073]
[1673337652095,0.02707468,17205.0,17204.0,1.44958322]
[1673337654041,0.02707468,17205.0,17204.0,1.08775222]
[1673337654775,0.02791672,17205.0,17204.0,1.08775222]
[1673337655042,0.02791672,17205.0,17204.0,0.46388973]
[1673337655528,0.02707468,17205.0,17204.0,0.20276148]
[1673337655769,0.02707468,17205.0,17204.0,0.46388973]
[1673337656357,0.02791672,17205.0,17204.0,0.20276148]
[1673337656574,0.02707468,17205.0,17204.0,0.20276148]
[1673337657314,0.02791672,17205.0,17204.0,0.20276148]
[1673337657571,0.02707468,17205.0,17204.0,0.20276148]
[1673337658342,0.02791672,17205.0,17204.0,0.20276148]
[1673337658555,0.20105417,17205.0,17204.0,0.20276148]
[1673337659612,0.20189621,17205.0,17204.0,0.20276148]
[1673337659859,0.20105417,17205.0,17204.0,0.20276148]
[1673337660111,0.02707468,17205.0,17204.0,0.20276148]
[1673337660339,0.20105417,17205.0,17204.0,0.20276148]
[1673337660826,0.20189621,17205.0,17204.0,0.02867598]
[1673337661333,0.20105417,17205.0,17204.0,0.20276148]
[1673337665929,0.20189621,17205.0,17204.0,0.20276148]
[1673337666376,0.20105417,17205.0,17204.0,0.20276148]
[1673337666858,0.20189621,17205.0,17204.0,0.20276148]
[1673337667120,0.20105417,17205.0,17204.0,0.20276148]
[1673337667424,0.20105417,17205.0,17204.0,0.02867598]
[1673337667677,0.20105417,17205.0,17204.0,0.20276148]
[1673337668450,0.02707468,17205.0,17204.0,0.20276148]
[1673337669011,0.02707468,17205.0,17204.0,0.46388973]
[1673337669240,0.02707468,17205.0,17204.0,0.82572073]
[1673337669505,0.02707468,17205.0,17204.0,1.44876756]
[1673337670561,0.02791672,17205.0,17204.0,0.82572073]
[1673337670830,0.02707468,17205.0,17204.0,0.46388973]
[1673337671087,0.02707468,17205.0,17204.0,0.20276148]
[1673337671387,0.02707468,17205.0,17204.0,0.46388973]
[1673337671651,0.02707468,17205.0,17204.0,0.82572073]
[1673337672887,0.02707468,17205.0,17204.0,0.20276148]
[1673337673151,0.02707468,17205.0,17204.0,0.46388973]
[1673337673664,0.02707468,17205.0,17204.0,0.82572073]
[1673337674412,0.02707468,17205.0,17204.0,0.46388973]
[1673337674679,0.02707468,17205.0,17204.0,0.20276148]
[1673337674941,0.02707468,17205.0,17204.0,0.46388973]
[1673337675326,0.02707468,17205.0,17204.0,1.44988325]
[1673337677559,0.02707468,17205.0,17204.0,1.79788408]
[1673337677808,0.02707468,17205.0,17204.0,2.09788408]
[1673337678059,0.02707468,17205.0,17204.0,2.07388408]
[1673337678311,0.02707468,17205.0,17204.0,2.16888408]
[1673337678569,0.02707468,17205.0,17204.0,2.07388408]
[1673337678817,0.02707468,17205.0,17204.0,1.86888408]
[1673337679590,0.02707468,17205.0,17204.0,2.16888408]
[1673337680102,0.02707468,17205.0,17204.0,1.86888408]
[1673337681380,0.02707468,17205.0,17204.0,2.16888408]
[1673337681638,0.02707468,17205.0,17204.0,1.86888408]
[1673337682418,0.02707468,17205.0,17204.0,2.16888408]
[1673337682679,0.02707468,17205.0,17204.0,1.69520668]
[1673337683697,0.02707468,17205.0,17204.0,1.86945616]
[1673337683952,0.02707468,17205.0,17204.0,1.52128516]
[1673337684202,0.02707468,17205.0,17204.0,1.86945616]
[1673337684719,0.02707468,17205.0,17204.0,1.52128516]
[1673337685498,0.02707468,17205.0,17204.0,1.69520668]
[1673337686012,0.02707468,17205.0,17204.0,1.86944507]
[1673337686257,0.02707468,17205.0,17204.0,1.52127407]
[1673337686513,0.02707468,17205.0,17204.0,0.53528055]
[1673337686760,0.02707468,17205.0,17204.0,0.27391437]
[1673337687019,0.02707468,17205.0,17204.0,0.09967598]
[1673337687261,0.02791672,17205.0,17204.0,0.09967598]
[1673337687750,0.02707468,17205.0,17204.0,0.09967598]
[1673337689227,0.02791672,17205.0,17204.0,0.09967598]
[1673337689475,0.02707468,17205.0,17204.0,0.09967598]
[1673337690766,0.02791672,17205.0,17204.0,0.09967598]
[1673337691022,0.02707468,17205.0,17204.0,0.09967598]
[1673337691780,0.20105417,17205.0,17204.0,0.09967598]
[1673337692286,0.02707468,17205.0,17204.0,0.09967598]
[1673337692539,0.02791672,17205.0,17204.0,0.09967598]
[1673337694093,0.20189621,17205.0,17204.0,0.09967598]
[1673337694425,0.02791672,17205.0,17204.0,0.09967598]
[1673337696565,0.20189621,17205.0,17204.0,0.09967598]
[1673337700584,0.20105417,17205.0,17204.0,0.09967598]
[1673337701138,0.60505633,17205.0,17204.0,0.09967598]
[1673337701651,0.86602556,17205.0,17204.0,0.09967598]
[1673337701928,0.86602556,17205.0,17204.0,0.09960616]
[1673337702421,0.86602556,17205.0,17204.0,0.09669738]
[1673337703425,0.86602556,17205.0,17204.0,0.09378827]
[1673337703921,0.40105417,17205.0,17204.0,0.09378827]
[1673337704169,1.0668676,17205.0,17204.0,0.09378827]
[1673337704418,1.0668676,17205.0,17204.0,0.09087924]
[1673337704939,1.40855186,17205.0,17204.0,0.09087924]
[1673337705204,1.67353586,17205.0,17204.0,0.09087924]
[1673337705461,1.67353586,17205.0,17204.0,0.08797087]
[1673337705687,1.23454265,17205.0,17204.0,0.08797087]
[1673337706489,1.23454265,17205.0,17204.0,0.08506253]
[1673337707520,1.84756585,17205.0,17204.0,0.08215408]
[1673337707743,1.40855186,17205.0,17204.0,0.08215408]
[1673337708236,1.23367523,17205.0,17204.0,0.08215408]
[1673337708487,1.23367523,17205.0,17204.0,0.07924484]
[1673337710607,1.23367523,17205.0,17204.0,0.07633578]
[1673337711641,1.23451727,17205.0,17204.0,0.07633578]
[1673337713418,1.23451727,17205.0,17204.0,0.07342747]
[1673337714848,1.49950127,17205.0,17204.0,0.07342747]
[1673337715360,1.23451727,17205.0,17204.0,0.07342747]
[1673337720554,1.23367523,17205.0,17204.0,0.07051854]
[1673337721649,1.23367523,17205.0,17204.0,0.06760861]
[1673337722289,1.49865923,17205.0,17204.0,0.06760861]
[1673337722553,1.49865923,17205.0,17204.0,0.06469794]
[1673337722804,1.23367523,17205.0,17204.0,0.06469794]
[1673337723570,1.23367523,17205.0,17204.0,0.06178945]
[1673337724073,1.23451727,17205.0,17204.0,0.06178945]
[1673337724575,1.23451727,17205.0,17204.0,0.05888086]
[1673337724825,1.58258102,17205.0,17204.0,0.05888086]
[1673337725096,1.84756502,17205.0,17204.0,0.05888086]
[1673337725353,1.49950127,17205.0,17204.0,0.05888086]
[1673337725622,1.49958632,17205.0,17204.0,0.05597178]
[1673337725878,1.23460232,17205.0,17204.0,0.05597178]
[1673337726398,1.40855186,17205.0,17204.0,0.05306325]
[1673337727423,1.40855186,17205.0,17204.0,0.05015258]
[1673337727674,1.40770982,17205.0,17204.0,0.05015258]
[1673337730629,1.40770982,17205.0,17204.0,0.04724372]
[1673337731126,1.84350058,17205.0,17204.0,0.04724372]
[1673337731368,1.40855186,17205.0,17204.0,0.04724372]
[1673337731643,1.40855186,17205.0,17204.0,0.04433483]
[1673337732149,1.84350058,17205.0,17204.0,0.04433483]
[1673337732391,1.40855186,17205.0,17204.0,0.04433483]
[1673337733404,1.84350058,17205.0,17204.0,0.04433483]
[1673337733664,2.07919289,17205.0,17204.0,0.04433483]
[1673337734460,1.81420889,17205.0,17204.0,0.04433483]
[1673337734719,2.07919289,17205.0,17204.0,0.04433483]
[1673337736247,1.81420889,17205.0,17204.0,0.04433483]
[1673337736497,2.07919289,17205.0,17204.0,0.04433483]
[1673337737293,1.81420889,17205.0,17204.0,0.04433483]
[1673337737553,2.07919289,17205.0,17204.0,0.04433483]
[1673337737763,1.81420889,17205.0,17204.0,0.04433483]
[1673337738013,1.81336685,17205.0,17204.0,0.04433483]
[1673337738263,1.58168931,17205.0,17204.0,0.04433483]
[1673337738523,1.17768715,17205.0,17204.0,0.04433483]
[1673337739543,1.43913079,17205.0,17204.0,0.04433483]
[1673337740045,1.17768715,17205.0,17204.0,0.04433483]
[1673337740359,1.41757874,17205.0,17204.0,0.04433483]
[1673337740627,1.8215809,17205.0,17204.0,0.04433483]
[1673337741642,1.41757874,17205.0,17204.0,0.04433483]
[1673337741886,1.41842078,17205.0,17204.0,0.04433483]
[1673337743366,1.41757874,17205.0,17204.0,0.04433483]
[1673337743639,1.17768715,17205.0,17204.0,0.04433483]
[1673337743930,1.4392027,17205.0,17204.0,0.04433483]
[1673337744127,1.00509602,17205.0,17204.0,0.04433483]
[1673337744348,1.00425398,17205.0,17204.0,0.04433483]
[1673337745612,1.00425398,17205.0,17204.0,0.45625111]
[1673337745613,0.20141519,17205.0,17204.0,0.45625111]
[1673337745859,0.02707468,17205.0,17204.0,0.8417704]
[1673337746854,0.02707468,17205.0,17204.0,2.53489486]
[1673337748350,0.02707468,17205.0,17204.0,2.36088074]
[1673337749600,0.02707468,17205.0,17204.0,2.53489486]
[1673337750089,0.02707468,17205.0,17204.0,2.70894151]
[1673337750338,0.02707468,17205.0,17204.0,2.70894278]
[1673337750587,0.02707468,17205.0,17204.0,2.36077668]
[1673337751875,0.03107468,17205.0,17204.0,2.45544185]
[1673337752139,0.03107468,17205.0,17204.0,1.83625]
[1673337752384,0.03107468,17205.0,17204.0,1.27488382]
[1673337753660,0.03107468,17205.0,17204.0,1.57488382]
[1673337755875,0.03096205,17205.0,17204.0,1.27488382]
[1673337756122,0.03096205,17205.0,17204.0,1.57488382]
[1673337756368,0.03096205,17205.0,17204.0,1.27488382]
[1673337757863,0.03096205,17205.0,17204.0,1.57488382]
[1673337759148,0.03096205,17205.0,17204.0,1.27488382]
[1673337759653,0.03096205,17205.0,17204.0,1.100831]
[1673337759920,0.03096205,17205.0,17204.0,1.27488382]
[1673337760870,0.03085115,17205.0,17204.0,1.27488382]
[1673337761113,0.03085115,17205.0,17204.0,0.67488382]
[1673337761360,0.03085115,17205.0,17204.0,0.500831]
[1673337761867,0.03085115,17205.0,17204.0,0.67488382]
[1673337762114,0.03085115,17205.0,17204.0,0.500831]
[1673337763624,0.03085115,17205.0,17204.0,0.800831]
[1673337764134,0.03085115,17205.0,17204.0,0.97488382]
[1673337765337,0.03085115,17205.0,17204.0,0.67488382]
[1673337765857,0.03085115,17205.0,17204.0,0.97488382]
[1673337766117,0.03085115,17205.0,17204.0,1.23625]
[1673337766395,0.03085115,17205.0,17204.0,0.97488382]
[1673337768457,0.03085115,17205.0,17204.0,1.23625]
[1673337768974,0.03085115,17205.0,17204.0,1.85156169]
[1673337770465,0.03085115,17205.0,17204.0,1.23625]
[1673337770721,0.03085115,17205.0,17204.0,0.67488382]
[1673337771232,0.03085115,17205.0,17204.0,0.500831]
[1673337773512,0.03085115,17205.0,17204.0,0.49792109]
[1673337780528,0.03085115,17205.0,17204.0,0.49501201]
[1673337781048,0.03085115,17205.0,17204.0,0.66906483]
[1673337782652,0.03085115,17205.0,17204.0,0.92752248]
[1673337784127,0.03085115,17205.0,17204.0,1.5438187]
[1673337784593,0.03085115,17205.0,17204.0,1.54091016]
[1673337786418,0.03085115,17205.0,17204.0,1.53800147]
[1673337787172,0.03169319,17205.0,17204.0,1.53800147]
[1673337787432,0.03169319,17205.0,17204.0,0.31305282]
[1673337787695,0.87155141,17205.0,17204.0,0.139]
[1673337787982,1.21287465,17205.0,17204.0,0.139]
[1673337788471,1.21287465,17205.0,17204.0,0.13699949]
[1673337788472,1.31847216,17205.0,17204.0,0.13699949]
[1673337788738,1.31847216,17205.0,17203.0,0.00544125]
[1673337788739,1.31447216,17205.0,17203.0,0.00544125]
[1673337789001,1.09394916,17205.0,17204.0,0.005]
[1673337789526,1.72153591,17205.0,17204.0,0.005]
[1673337789761,1.72153513,17205.0,17204.0,0.005]
[1673337790024,1.37347138,17205.0,17204.0,0.005]
[1673337790285,1.31447138,17205.0,17203.0,0.00544125]
[1673337790552,0.2,17204.0,17203.0,0.00844125]
[1673337790844,0.60400216,17204.0,17203.0,0.00544125]
[1673337791093,0.2,17204.0,17203.0,0.00544125]
[1673337791606,0.2,17204.0,17203.0,0.01044125]
[1673337791863,0.2,17204.0,17203.0,0.00544125]
[1673337792112,0.60400216,17204.0,17203.0,0.00844125]
[1673337792618,0.60400216,17204.0,17203.0,0.00553207]
[1673337793381,0.2,17204.0,17203.0,0.00253207]
[1673337793631,0.259,17204.0,17203.0,0.0046229]
[1673337794425,0.259,17204.0,17203.0,0.00171453]
[1673337795399,0.259,17204.0,17202.0,0.20783031]
[1673337796184,0.059,17204.0,17202.0,0.20783031]
[1673337796442,0.77259079,17205.0,17202.0,0.00783031]
[1673337797450,0.77259079,17205.0,17202.0,0.0049214]
[1673337797705,0.2,17204.0,17202.0,0.0049214]
[1673337797951,0.60400216,17204.0,17202.0,0.0049214]
[1673337798951,0.6048442,17204.0,17202.0,0.0049214]
[1673337799456,0.60400216,17204.0,17202.0,0.00201238]
[1673337799933,0.60400216,17204.0,17202.0,0.42008694]
[1673337801506,0.60400216,17204.0,17202.0,0.41717593]
[1673337802785,1.16253045,17204.0,17202.0,0.41717593]
[1673337803557,1.16253045,17204.0,17202.0,0.41426492]
[1673337804577,1.16168841,17204.0,17202.0,0.41426492]
[1673337804861,1.16253045,17204.0,17202.0,0.41426492]
[1673337805602,1.16253045,17204.0,17202.0,0.41135633]
[1673337806140,1.16168841,17204.0,17202.0,0.41135633]
[1673337807003,1.16253045,17204.0,17202.0,0.41135633]
[1673337807257,1.16168841,17204.0,17202.0,0.41135633]
[1673337807519,1.16168841,17204.0,17202.0,0.40844724]
[1673337809065,1.16253045,17204.0,17202.0,0.40844724]
[1673337809330,1.16168841,17204.0,17202.0,0.40844724]
[1673337809587,1.16168841,17204.0,17202.0,0.40553875]
[1673337810302,0.63915341,17203.0,17202.0,0.40553875]
[1673337811572,0.63999545,17203.0,17202.0,0.40262961]
[1673337811792,0.63915341,17203.0,17202.0,0.40262961]
[1673337813527,0.63915341,17203.0,17202.0,0.39972015]
[1673337813781,0.63999545,17203.0,17201.0,0.18252695]
[1673337814033,0.63915341,17203.0,17201.0,0.72158241]
[1673337815142,0.64315341,17203.0,17201.0,0.79358241]
[1673337815569,0.02641788,17202.0,17201.0,0.79358241]
[1673337815821,0.02641788,17202.0,17201.0,1.15544941]
[1673337816870,0.02725992,17202.0,17201.0,1.15544941]
[1673337817124,0.02641788,17202.0,17201.0,0.97639659]
[1673337817375,0.02641788,17202.0,17201.0,0.90439659]
[1673337817624,0.03041788,17202.0,17201.0,0.9734875]
[1673337818897,0.03041788,17202.0,17201.0,1.14754032]
[1673337819146,0.03041788,17202.0,17201.0,0.9734875]
[1673337819658,0.03041788,17202.0,17201.0,0.97057804]
[1673337820167,0.03041788,17202.0,17201.0,0.60871104]
[1673337820930,0.03041788,17202.0,17201.0,0.97057804]
[1673337821439,0.03041788,17202.0,17201.0,0.96766687]
[1673337822027,0.03041788,17202.0,17201.0,0.85579987]
[1673337822761,0.03125992,17202.0,17201.0,1.21766687]
[1673337823018,0.03125992,17202.0,17201.0,0.322]
[1673337823261,0.03041788,17202.0,17201.0,0.322]
[1673337823499,0.03041788,17202.0,17201.0,0.31908883]
[1673337823973,0.03041788,17202.0,17201.0,0.68095583]
[1673337824933,0.03125992,17202.0,17201.0,0.68095583]
[1673337825180,0.03041788,17202.0,17201.0,0.31908883]
[1673337825669,0.03041788,17202.0,17201.0,0.3161787]
[1673337826154,0.03041788,17202.0,17201.0,0.6780457]
[1673337826879,0.03041788,17202.0,17201.0,0.85209852]
[1673337827639,0.03041788,17202.0,17201.0,0.84918735]
[1673337829595,0.03041788,17202.0,17201.0,0.84627838]
[1673337831540,0.03041788,17202.0,17201.0,0.84336885]
[1673337833620,0.03041788,17202.0,17201.0,0.84045932]
[1673337834200,0.03041788,17202.0,17201.0,1.21417254]
[1673337834403,0.03041788,17202.0,17201.0,3.26755299]
[1673337834657,0.03041788,17202.0,17201.0,3.44123039]
[1673337835178,0.03041788,17202.0,17201.0,3.74123039]
[1673337835687,0.03041788,17202.0,17201.0,3.43831922]
[1673337836460,0.03041788,17202.0,17201.0,3.73831922]
[1673337837498,0.03041788,17202.0,17201.0,3.73540927]
[1673337837757,0.03041788,17202.0,17201.0,3.43540927]
[1673337839526,0.03041788,17202.0,17201.0,3.43250014]
[1673337840290,0.03041788,17202.0,17201.0,2.99745656]
[1673337840550,0.03041788,17202.0,17201.0,3.25886287]
[1673337842852,0.03041788,17202.0,17201.0,3.43314053]
[1673337843106,0.03041788,17202.0,17201.0,2.08496964]
[1673337843617,0.03041788,17202.0,17201.0,2.08206024]
[1673337844637,0.03041788,17202.0,17201.0,2.07915121]
[1673337845409,0.03041788,17202.0,17201.0,2.07624227]
[1673337846456,0.03041788,17202.0,17201.0,2.0733311]
[1673337847612,0.03041788,17202.0,17201.0,2.0704227]
[1673337847885,0.03041788,17202.0,17201.0,2.24431593]
[1673337848671,0.03041788,17202.0,17201.0,2.41504483]
[1673337848949,0.03041788,17202.0,17201.0,2.24142446]
[1673337849443,0.03041788,17202.0,17201.0,2.67355897]
[1673337849689,0.03041788,17202.0,17201.0,2.23851539]
[1673337850420,0.03041788,17202.0,17201.0,2.23850539]
[1673337850674,0.03041788,17202.0,17201.0,2.23559422]
[1673337851955,0.03041788,17202.0,17201.0,2.6706378]
[1673337852206,0.03041788,17202.0,17201.0,2.23559422]
[1673337854609,0.03041788,17202.0,17201.0,2.6706378]
[1673337855368,0.03041788,17202.0,17201.0,2.23559422]
[1673337856743,0.03041788,17202.0,17201.0,2.40449422]
[1673337858703,0.03041788,17202.0,17201.0,2.8395378]
[1673337859646,0.03041788,17202.0,17201.0,2.40449422]
[1673337866082,0.03041788,17202.0,17201.0,2.57812459]
[1673337868101,0.03041788,17202.0,17201.0,2.83956529]
[1673337868626,0.03041788,17202.0,17201.0,2.57812459]
[1673337868922,0.03041788,17202.0,17201.0,2.40922459]
[1673337869963,0.03041788,17202.0,17201.0,2.67069633]
[1673337870189,0.03041788,17202.0,17201.0,2.40922459]
[1673337871710,0.0303275,17202.0,17201.0,2.40922459]
[1673337873280,0.0303275,17202.0,17201.0,2.23569891]
[1673337874424,0.0303275,17202.0,17201.0,2.67074249]
[1673337874677,0.0303275,17202.0,17201.0,2.40922459]
[1673337874936,0.0303275,17202.0,17201.0,2.67077159]
[1673337875442,0.0303275,17202.0,17201.0,2.23572801]
[1673337876301,0.0303275,17202.0,17201.0,2.67077159]
[1673337876521,0.0303275,17202.0,17201.0,2.40922459]
[1673337882712,0.0303275,17202.0,17201.0,2.23573835]
[1673337893504,0.0303275,17202.0,17201.0,2.41010404]
[1673337893758,0.0303275,17202.0,17201.0,2.06193304]
[1673337896033,0.57714514,17202.0,17201.0,0.80876639]
[1673337896289,1.14586821,17202.0,17201.0,0.2725337]
[1673337896798,1.40738376,17202.0,17201.0,0.2725337]
[1673337897560,1.14586821,17202.0,17201.0,0.2725337]
[1673337899330,1.40738376,17202.0,17201.0,0.2725337]
[1673337899614,1.14586821,17202.0,17201.0,0.2725337]
[1673337900657,1.14502617,17202.0,17201.0,0.2725337]
[1673337901943,1.40654172,17202.0,17201.0,0.2725337]
[1673337902690,1.14502617,17202.0,17201.0,0.2725337]
[1673337902988,1.40654172,17202.0,17201.0,0.2725337]
[1673337904023,1.14502617,17202.0,17201.0,0.2725337]
[1673337904229,1.14586821,17202.0,17201.0,0.2725337]
[1673337905022,1.40738376,17202.0,17201.0,0.2725337]
[1673337905287,1.14586821,17202.0,17201.0,0.2725337]
[1673337906069,0.75128262,17202.0,17201.0,0.2725337]
[1673337906622,1.14586601,17202.0,17201.0,0.2725337]
[1673337907862,0.5763031,17202.0,17201.0,0.2725337]
[1673337908404,0.97115774,17202.0,17201.0,0.2725337]
[1673337908675,1.14529522,17202.0,17201.0,0.2725337]
[1673337911388,1.14613726,17202.0,17201.0,0.2725337]
[1673337914779,0.97199978,17202.0,17201.0,0.2725337]
[1673337915287,1.14613726,17202.0,17201.0,0.2725337]
[1673337918475,0.97199978,17202.0,17201.0,0.2725337]
[1673337920182,1.14613726,17202.0,17201.0,0.2725337]
[1673337922547,0.75128262,17202.0,17201.0,0.2725337]
[1673337922768,1.14618126,17202.0,17201.0,0.2725337]
[1673337924792,0.75044058,17202.0,17201.0,0.2725337]
[1673337925040,0.5763031,17202.0,17201.0,0.2725337]
[1673337929696,0.57714514,17202.0,17201.0,0.2725337]
[1673337930469,0.5763031,17202.0,17201.0,0.2725337]
[1673337930732,0.57714514,17202.0,17201.0,0.2725337]
[1673337931250,0.5763031,17202.0,17201.0,0.2725337]
[1673337931591,0.0303275,17202.0,17201.0,0.2725337]
[1673337931835,0.0303275,17202.0,17201.0,1.2289888]
[1673337932095,0.0303275,17202.0,17201.0,1.40335449]
[1673337932628,0.004,17202.0,17201.0,1.43777107]
[1673337932876,0.004,17202.0,17201.0,1.18777107]
[1673337933126,0.004,17202.0,17201.0,0.82590407]
[1673337934017,0.00484204,17202.0,17201.0,0.82590407]
[1673337934329,0.004,17202.0,17201.0,0.82590407]
[1673337934849,0.004,17202.0,17201.0,0.65153838]
[1673337935105,0.00484204,17202.0,17201.0,0.65153838]
[1673337935360,0.17897952,17202.0,17201.0,0.65153838]
[1673337936631,0.17813748,17202.0,17201.0,0.65153838]
[1673337937387,0.17897952,17202.0,17201.0,0.65153838]
[1673337937605,0.004,17202.0,17201.0,1.01340538]
[1673337939143,0.004,17202.0,17201.0,0.65153838]
[1673337939391,0.17813748,17202.0,17201.0,0.65153838]
[1673337939642,0.004,17202.0,17201.0,0.65153838]
[1673337940149,0.004,17202.0,17201.0,1.01340538]
[1673337940392,0.004,17202.0,17201.0,0.65153838]
[1673337940637,0.00484204,17202.0,17201.0,0.65153838]
[1673337940880,0.17813748,17202.0,17201.0,0.65153838]
[1673337942131,0.004,17202.0,17201.0,0.82590407]
[1673337942384,0.004,17202.0,17201.0,1.18777107]
[1673337942889,0.004,17202.0,17201.0,0.82590407]
[1673337943635,0.17813748,17202.0,17201.0,0.65153838]
[1673337945149,0.17897952,17202.0,17201.0,0.65153838]
[1673337945397,0.17813748,17202.0,17201.0,0.65153838]
[1673337946223,0.17897952,17202.0,17201.0,0.65153838]
[1673337946522,0.17813748,17202.0,17201.0,0.65153838]
[1673337947383,0.17897952,17202.0,17201.0,0.65153838]
[1673337947627,0.17813748,17202.0,17201.0,0.65153838]
[1673337949432,0.17897952,17202.0,17201.0,0.65153838]
[1673337949673,0.17813748,17202.0,17201.0,0.65153838]
[1673337950415,0.17897952,17202.0,17201.0,0.65153838]
[1673337950668,0.17813748,17202.0,17201.0,0.65153838]
[1673337952994,0.17897952,17202.0,17201.0,0.65153838]
[1673337953235,0.17813748,17202.0,17201.0,0.65153838]
[1673337955611,0.17813748,17202.0,17201.0,1.01340538]
[1673337956071,0.17813748,17202.0,17201.0,0.65153838]
[1673337956573,0.004,17202.0,17201.0,1.18777107]
[1673337958689,0.004,17202.0,17201.0,0.82590407]
[1673337960282,0.004,17202.0,17201.0,1.18777107]
[1673337961496,0.004,17202.0,17201.0,0.82590407]
[1673337961999,0.004,17202.0,17201.0,1.18777107]
[1673337962976,0.004,17202.0,17201.0,2.05677947]
[1673337963228,0.004,17202.0,17201.0,1.44932841]
[1673337964525,0.004,17202.0,17201.0,2.05678925]
[1673337965443,0.00484204,17202.0,17201.0,1.08746141]
[1673337965684,0.00484204,17202.0,17201.0,0.82590407]
[1673337965982,0.17813748,17202.0,17201.0,0.82590407]
[1673337966219,0.004,17202.0,17201.0,0.82590407]
[1673337966713,0.004,17202.0,17201.0,1.18777107]
[1673337967724,0.004,17202.0,17201.0,1.44932841]
[1673337967965,0.004,17202.0,17201.0,2.05804622]
[1673337969237,0.004,17202.0,17201.0,1.69617922]
[1673337969720,0.004,17202.0,17201.0,2.05804622]
[1673337970471,0.004,17202.0,17201.0,1.69617922]
[1673337970721,0.004,17202.0,17201.0,2.46204838]
[1673337970942,0.004,17202.0,17201.0,2.40621722]
[1673337971196,0.004,17202.0,17201.0,2.81021938]
[1673337971436,0.004,17202.0,17201.0,2.23185153]
[1673337971938,0.004,17202.0,17201.0,2.05801862]
[1673337975234,0.004,17202.0,17201.0,1.44930081]
[1673337976979,0.004,17202.0,17201.0,2.03667297]
[1673337977460,0.004,17202.0,17201.0,2.03667295]
[1673337977703,0.004,17202.0,17201.0,2.03667203]
[1673337977954,0.004,17202.0,17201.0,1.44930081]
[1673337979285,0.004,17202.0,17201.0,1.18774347]
[1673337979526,0.004,17202.0,17201.0,1.44930081]
[1673337980223,0.004,17202.0,17201.0,1.18774347]
[1673337980719,0.004,17202.0,17201.0,1.44930081]
[1673337980960,0.004,17202.0,17201.0,1.18774347]
[1673337984028,0.004,17202.0,17201.0,1.44930081]
[1673337985196,0.004,17202.0,17201.0,1.18774347]
[1673337985862,0.004,17202.0,17201.0,1.44930081]
[1673337986337,0.004,17202.0,17201.0,1.18774347]
[1673337988265,0.004,17202.0,17201.0,1.44930081]
[1673337988515,0.004,17202.0,17201.0,2.03656055]
[1673337989044,0.004,17202.0,17201.0,1.44930081]
[1673337989747,0.004,17202.0,17201.0,1.18774347]
[1673337989971,0.004,17202.0,17201.0,1.44930081]
[1673337991211,0.004,17202.0,17201.0,0.82587647]
[1673337991452,0.004,17202.0,17201.0,1.18774347]
[1673337991702,0.004,17202.0,17201.0,0.82587647]
[1673337992434,0.004,17202.0,17201.0,1.18774347]
[1673337993438,0.004,17202.0,17201.0,1.44930081]
[1673337993936,0.004,17202.0,17201.0,2.0363135]
[1673337994671,0.004,17202.0,17201.0,2.03614703]
[1673337997517,0.004,17202.0,17201.0,2.38437427]
[1673337998017,0.004,17202.0,17201.0,2.20997994]
[1673338003397,0.004,17202.0,17201.0,3.32514623]
[1673338003658,0.004,17202.0,17201.0,2.30425376]
[1673338003659,0.0039215,17202.0,17201.0,2.30425376]
[1673338004180,0.0039215,17202.0,17201.0,1.70966566]
[1673338004446,0.0039215,17202.0,17201.0,2.86827276]
[1673338004696,0.56832218,17205.0,17201.0,2.32368677]
[1673338004957,0.56832218,17205.0,17203.0,0.63559202]
[1673338005228,0.56832218,17205.0,17204.0,0.361867]
[1673338005466,0.56832218,17205.0,17203.0,1.03959418]
[1673338005720,0.74245966,17205.0,17203.0,0.63559202]
[1673338006221,0.79445966,17205.0,17203.0,0.37723681]
[1673338006471,0.22613748,17205.0,17203.0,0.37723681]
[1673338006739,0.052,17205.0,17203.0,0.37723681]
[1673338007461,0.052,17205.0,17204.0,0.56776774]
[1673338008402,1.60232373,17206.0,17204.0,0.56776774]
[1673338008668,0.051,17205.0,17204.0,0.57776774]
[1673338008919,0.051,17205.0,17204.0,0.75200455]
[1673338009417,0.051,17205.0,17204.0,0.57776774]
[1673338010156,0.92480818,17206.0,17204.0,0.56776774]
[1673338010411,0.97580818,17206.0,17204.0,0.57776774]
[1673338010661,0.92480818,17206.0,17204.0,0.56776774]
[1673338010910,0.92480818,17206.0,17204.0,0.57776774]